bitfinex/quotes_BTCUSD_20251114
["timestamp","ask_amount","ask_price","bid_price","bid_amount"]
[1763140905068,0.08344,96927.0,96926.0,0.05]
[1763140905293,0.06712,96927.0,96926.0,0.05]
[1763140906852,0.0124,96950.0,96919.0,0.21917163]
[1763140906853,0.02578808,96944.0,96934.0,0.05]
[1763140907053,0.01324,96939.0,96938.0,0.05]
[1763140907430,0.02956,96939.0,96938.0,0.05]
[1763140907885,0.02956,96939.0,96912.0,0.00024103]
[1763140907886,0.05534941,96939.0,96912.0,0.00024103]
[1763140908043,0.10479654,96927.0,96915.0,0.05]
[1763140908250,0.02956,96916.0,96915.0,0.05]
[1763140908468,0.09668,96916.0,96915.0,0.05]
[1763140909462,0.09668,96916.0,96912.0,0.00024103]
[1763140909463,0.09668,96916.0,96912.0,0.05024103]
[1763140909668,0.01632,96913.0,96912.0,0.05024103]
[1763140910241,0.01632,96913.0,96906.0,0.36342867]
[1763140910443,0.01632,96913.0,96912.0,0.05]
[1763140910827,0.08036,96916.0,96905.0,0.05]
[1763140911025,0.08036,96916.0,96906.0,0.36342867]
[1763140911368,0.01632,96907.0,96906.0,0.36442867]
[1763140911766,0.08344,96907.0,96906.0,0.05]
[1763140912236,0.06712,96907.0,96906.0,0.05]
[1763140912448,0.08344,96907.0,96906.0,0.05]
[1763140913395,0.08344,96907.0,96906.0,0.051]
[1763140914060,0.08344,96907.0,96906.0,0.001]
[1763140914781,0.01225515,96914.0,96906.0,0.051]
[1763140914990,0.01324,96916.0,96915.0,0.05]
[1763140915173,0.06712,96916.0,96915.0,0.05]
[1763140915351,0.06712,96916.0,96915.0,0.04994]
[1763140915952,0.10479654,96944.0,96906.0,0.001]
[1763140915953,0.0247,96934.0,96924.0,0.01639]
[1763140916175,0.06712,96944.0,96938.0,0.01639]
[1763140916349,0.06712,96944.0,96934.0,0.36342867]
[1763140916549,0.06712,96944.0,96943.0,0.04994]
[1763140916978,0.08344,96944.0,96943.0,0.04994]
[1763140918814,0.04341874,96939.0,96903.0,0.00024105]
[1763140918956,0.01282,96926.0,96916.0,0.05]
[1763140919159,0.01282,96926.0,96910.0,0.36342867]
[1763140919160,0.01632,96917.0,96910.0,0.36342867]
[1763140919402,0.02956,96911.0,96910.0,0.36342867]
[1763140919812,2.57768604,96987.0,96910.0,0.36342867]
[1763140919813,0.01324,96932.0,96919.0,0.01639]
[1763140920113,0.01324,96932.0,96931.0,0.05]
[1763140920316,0.0804,96932.0,96903.0,0.00224105]
[1763140920474,0.10479654,96927.0,96923.0,0.05]
[1763140920677,0.02579287,96926.0,96923.0,0.05]
[1763140920881,0.01711,96924.0,96923.0,0.05]
[1763140923182,0.01711,96924.0,96911.0,0.323]
[1763140923388,0.09295367,96923.0,96919.0,0.05]
[1763140923592,0.01711,96920.0,96919.0,0.05]
[1763140924108,0.01711,96920.0,96903.0,0.00024105]
[1763140924312,0.02579473,96919.0,96912.0,0.05]
[1763140924931,0.01711,96913.0,96912.0,0.05]
[1763140925224,0.08427,96913.0,96912.0,0.05]
[1763140925642,0.08427,96913.0,96911.0,0.001]
[1763140925819,0.10479654,96915.0,96911.0,0.001]
[1763140925820,0.01711,96912.0,96911.0,0.001]
[1763140926023,0.2063496,96923.0,96911.0,0.001]
[1763140926024,0.323,96942.0,96911.0,0.001]
[1763140926225,0.02566,96926.0,96910.0,0.36342867]
[1763140926404,0.02566,96926.0,96921.0,0.05]
[1763140926627,0.02579313,96925.0,96921.0,0.05]
[1763140926828,0.01711,96922.0,96921.0,0.05]
[1763140927067,0.08427,96922.0,96921.0,0.05]
[1763140927833,0.02579313,96925.0,96921.0,0.05]
[1763140927834,0.001,96925.0,96921.0,0.05]
[1763140928033,0.001,96925.0,96919.0,0.01262]
[1763140928034,0.001,96925.0,96924.0,0.05]
[1763140928309,0.05452,96925.0,96924.0,0.05]
[1763140928903,0.01057339,96944.0,96924.0,0.07528]
[1763140929112,0.01057339,96944.0,96920.0,0.2]
[1763140929113,0.01324,96961.0,96934.0,0.36342867]
[1763140929114,0.0135,96956.0,96934.0,0.36342867]
[1763140929413,0.06716,96955.0,96947.0,0.36342867]
[1763140929632,0.06716,96955.0,96954.0,0.05]
[1763140933433,0.06716,96955.0,96951.0,0.01095]
[1763140933642,0.02578542,96954.0,96953.0,0.05]
[1763140934066,0.06716,96955.0,96951.0,0.01095]
[1763140934270,0.06716,96955.0,96954.0,0.05]
[1763140934481,0.0135,96947.0,96930.0,0.6086354]
[1763140934686,0.0135,96931.0,96920.0,0.6086354]
[1763140934939,0.0135,96931.0,96930.0,0.05]
[1763140934940,0.03191,96931.0,96930.0,0.05]
[1763140935105,0.09907,96931.0,96920.0,0.6086354]
[1763140935448,0.13034654,96930.0,96927.0,0.05]
[1763140935617,0.02555,96930.0,96923.0,0.05]
[1763140936383,0.04299874,96930.0,96923.0,0.05]
[1763140936781,0.00952799,96930.0,96920.0,0.6086354]
[1763140937102,0.02075869,96930.0,96929.0,0.05]
[1763140937303,0.02075869,96930.0,96920.0,0.6086354]
[1763140937502,0.02075869,96930.0,96929.0,0.05]
[1763140937713,0.02555,96929.0,96911.0,0.323]
[1763140937910,0.01841,96912.0,96900.0,0.6086354]
[1763140938302,0.02516,96912.0,96911.0,0.05]
[1763140938517,0.07399,96912.0,96911.0,0.05]
[1763140939735,0.0924,96912.0,96911.0,0.05]
[1763140940468,0.0924,96912.0,96890.0,0.6090354]
[1763140940670,0.01841,96904.0,96902.0,0.05]
[1763140941719,0.01841,96904.0,96890.0,0.0004]
[1763140941958,0.01841,96904.0,96890.0,0.6090354]
[1763140942427,0.01841,96904.0,96890.0,0.0004]
[1763140943179,0.01841,96904.0,96903.0,0.05024105]
[1763140943353,0.00675,96912.0,96903.0,0.00024105]
[1763140943581,0.00675,96912.0,96911.0,0.05]
[1763140943740,0.07399,96912.0,96911.0,0.05]
[1763140944694,0.03905,96931.0,96911.0,0.05]
[1763140944869,0.0135,96924.0,96923.0,0.05]
[1763140945233,0.03191,96924.0,96903.0,0.00024105]
[1763140945438,0.01841,96921.0,96911.0,0.05]
[1763140945639,0.09303446,96920.0,96911.0,0.05]
[1763140945867,0.01841,96912.0,96911.0,0.05]
[1763140946503,0.01841,96912.0,96908.0,0.05]
[1763140946704,0.0098,96911.0,96908.0,0.05]
[1763140946875,0.06724,96910.0,96908.0,0.05]
[1763140949064,0.02579739,96909.0,96908.0,0.05]
[1763140950615,0.04341739,96909.0,96908.0,0.05]
[1763140951513,0.06724,96910.0,96909.0,0.05]
[1763140951937,0.00974,96916.0,96915.0,0.05]
[1763140952138,0.02573066,96923.0,96915.0,0.05]
[1763140952139,0.01634982,96923.0,96915.0,0.05]
[1763140952342,0.02458,96937.0,96913.0,0.6086354]
[1763140952540,0.02458,96937.0,96929.0,0.05]
[1763140952541,0.0929918,96930.0,96929.0,0.05]
[1763140952869,0.0672,96930.0,96929.0,0.05]
[1763140953033,0.08482,96930.0,96928.0,0.05]
[1763140953237,0.01762,96929.0,96890.0,0.4004]
[1763140953439,0.01762,96929.0,96911.0,0.05]
[1763140953440,0.12241654,96921.0,96911.0,0.05]
[1763140953642,0.09299446,96920.0,96911.0,0.05]
[1763140953805,0.02866,96912.0,96911.0,0.05]
[1763140954247,0.09586,96912.0,96911.0,0.05]
[1763140956148,0.09586,96912.0,96908.0,0.05]
[1763140956260,0.02579686,96911.0,96908.0,0.05]
[1763140956465,0.01762,96909.0,96908.0,0.05]
[1763140957218,0.01762,96909.0,96905.0,0.05]
[1763140957423,0.02579766,96908.0,96905.0,0.05]
[1763140960259,0.01762,96906.0,96905.0,0.05]
[1763140961591,0.02579739,96909.0,96905.0,0.05]
[1763140961890,0.02579739,96909.0,96908.0,0.05]
[1763140962120,0.02579686,96911.0,96910.0,0.05]
[1763140962246,0.07824,96912.0,96911.0,0.05]
[1763140962697,0.09586,96912.0,96910.0,0.05]
[1763140962890,0.03590257,96911.0,96910.0,0.05]
[1763140963041,0.01762,96911.0,96910.0,0.05]
[1763140963501,0.02579473,96919.0,96910.0,0.05]
[1763140963706,0.0672,96918.0,96917.0,0.05]
[1763140964143,0.08482,96918.0,96917.0,0.05]
[1763140964307,0.08482,96918.0,96916.0,0.05]
[1763140964502,0.01762,96917.0,96916.0,0.05]
[1763140966506,0.01862,96917.0,96916.0,0.05]
[1763140966744,0.001,96917.0,96916.0,0.05]
[1763140967124,0.06816,96917.0,96916.0,0.05]
[1763140967742,0.08578,96917.0,96916.0,0.05]
[1763140968575,0.08478,96917.0,96916.0,0.05]
[1763140968872,0.08578,96917.0,96916.0,0.05]
[1763140969080,0.06816,96917.0,96916.0,0.05]
[1763140969879,0.001,96917.0,96916.0,0.05]
[1763140970373,0.06816,96917.0,96916.0,0.05]
[1763140971218,0.06816,96917.0,96916.0,0.07649]
[1763140971822,0.06816,96917.0,96916.0,0.05]
[1763140971968,0.06716,96917.0,96916.0,0.05]
[1763140972570,0.06716,96917.0,96916.0,0.07649]
[1763140972813,0.06716,96917.0,96916.0,0.05]
[1763140973453,0.02458,96944.0,96934.0,0.05]
[1763140973607,0.02578834,96943.0,96930.0,0.6086354]
[1763140973802,0.02578834,96943.0,96942.0,0.05]
[1763140973803,0.09294834,96943.0,96942.0,0.05]
[1763140974127,0.09294834,96943.0,96941.0,0.05]
[1763140974508,0.01762,96942.0,96941.0,0.05]
[1763140975296,0.04147244,96942.0,96941.0,0.05]
[1763140975670,0.04247244,96942.0,96938.0,0.05]
[1763140975840,0.04801098,96941.0,96938.0,0.05]
[1763140976046,0.01762,96939.0,96938.0,0.05]
[1763140976246,0.03978944,96939.0,96938.0,0.05]
[1763140977472,0.03978944,96939.0,96929.0,0.05]
[1763140977672,0.03978944,96939.0,96929.0,0.6086354]
[1763140977673,0.001,96939.0,96929.0,0.6086354]
[1763140977862,0.001,96939.0,96938.0,0.05]
[1763140978263,0.06816,96939.0,96938.0,0.05]
[1763140979315,0.06716,96939.0,96929.0,0.45287831]
[1763140979519,0.06816,96939.0,96936.0,0.05]
[1763140979925,0.06816,96939.0,96938.0,0.05]
[1763140980300,0.06916,96939.0,96938.0,0.05]
[1763140980504,0.06716,96939.0,96938.0,0.05]
[1763140980918,0.06816,96939.0,96938.0,0.05]
[1763140981115,0.06716,96939.0,96938.0,0.05]
[1763140981813,0.06816,96939.0,96938.0,0.05]
[1763140982490,0.001,96939.0,96938.0,0.05]
[1763140982661,0.0016379,96957.0,96940.0,0.2]
[1763140982856,0.0016379,96957.0,96956.0,0.06146]
[1763140983034,0.0016379,96957.0,96956.0,0.07819]
[1763140983248,0.0687979,96957.0,96956.0,0.07819]
[1763140984534,0.0687979,96957.0,96956.0,0.10239]
[1763140984739,0.0687979,96957.0,96956.0,0.06146]
[1763140985032,0.0016379,96957.0,96956.0,0.06146]
[1763140985235,0.0016379,96957.0,96956.0,0.07146]
[1763140986147,0.0016379,96957.0,96956.0,0.07246]
[1763140986362,0.0016379,96957.0,96956.0,0.07146]
[1763140986760,0.0016379,96957.0,96956.0,1.533292]
[1763140987438,0.0016379,96957.0,96956.0,1.57671074]
[1763140988036,0.0016379,96957.0,96956.0,0.61268374]
[1763140988437,0.0016379,96957.0,96956.0,0.61468374]
[1763140988614,0.00996,96992.0,96991.0,0.05]
[1763140988833,0.00996,96992.0,96991.0,0.0666]
[1763140990683,0.00996,96992.0,96991.0,0.05]
[1763140992830,0.00996,96992.0,96991.0,0.051]
[1763140993010,0.00996,96992.0,96991.0,0.05]
[1763140993304,0.00996,96992.0,96991.0,0.07673]
[1763140993894,0.00996,96992.0,96991.0,0.051]
[1763140994095,0.02723,96992.0,96991.0,0.051]
[1763140994341,0.02816634,96992.0,96991.0,0.051]
[1763140994715,0.02816634,96992.0,96991.0,0.001]
[1763140994899,0.05298796,96992.0,96991.0,0.001]
[1763140995106,0.05298796,96992.0,96975.0,0.05]
[1763140995306,0.10479654,96981.0,96975.0,0.05]
[1763140995514,0.03079839,96976.0,96975.0,0.05]
[1763140995735,0.03079839,96976.0,96960.0,0.36285105]
[1763140995936,0.09166,96975.0,96971.0,0.05]
[1763140996095,0.01727,96972.0,96971.0,0.05]
[1763140996597,0.06712,96975.0,96971.0,0.05]
[1763140996795,0.06712,96975.0,96974.0,0.05]
[1763140996993,0.06712,96975.0,96967.0,0.02573]
[1763140997202,0.06712,96975.0,96961.0,0.323]
[1763140997203,0.06712,96975.0,96974.0,0.05]
[1763140997625,0.08439,96975.0,96974.0,0.05]
[1763140998605,0.08439,96975.0,96974.0,0.051]
[1763140998823,0.06712,96975.0,96974.0,0.051]
[1763140999465,0.08439,96975.0,96974.0,0.001]
[1763140999681,0.06712,96975.0,96974.0,0.051]
[1763141000246,0.11781654,97005.0,96974.0,0.001]
[1763141000443,0.10479654,96990.0,96987.0,0.05]
[1763141000793,0.02577611,96989.0,96976.0,0.05]
[1763141000933,0.05031611,96989.0,96976.0,0.05]
[1763141001134,0.01727,96977.0,96976.0,0.05]
[1763141001357,0.08439,96977.0,96976.0,0.05]
[1763141001555,0.08492514,96977.0,96976.0,0.05]
[1763141001962,0.08492514,96977.0,96950.0,0.36285105]
[1763141002196,0.10479654,96968.0,96961.0,0.05]
[1763141002396,0.10479654,96968.0,96950.0,0.36285105]
[1763141002617,0.03756,96967.0,96948.0,0.05]
[1763141002775,0.01166,96944.0,96940.0,0.36285105]
[1763141002970,0.01166,96944.0,96911.0,0.00642]
[1763141002971,0.01727,96941.0,96912.0,0.00163826]
[1763141003186,0.01727,96930.0,96929.0,0.05]
[1763141004038,0.01727,96930.0,96925.0,0.05]
[1763141004253,0.0917,96929.0,96925.0,0.05]
[1763141004457,0.01727,96926.0,96925.0,0.05]
[1763141005377,0.0917,96929.0,96928.0,0.05]
[1763141005378,0.06716,96929.0,96928.0,0.05]
[1763141005524,0.02454,96939.0,96936.0,0.05]
[1763141005709,0.10479654,96937.0,96936.0,0.05]
[1763141005923,0.01166,96944.0,96936.0,0.05]
[1763141006125,0.06716,96943.0,96931.0,0.01146]
[1763141006354,0.06716,96943.0,96942.0,0.05]
[1763141006752,0.08443,96943.0,96942.0,0.05]
[1763141007712,0.10346076,96943.0,96932.0,0.05]
[1763141007874,0.04357076,96942.0,96932.0,0.05]
[1763141008071,0.01727,96933.0,96932.0,0.05]
[1763141009548,0.02454,96941.0,96929.0,0.01018]
[1763141009769,0.02454,96941.0,96940.0,0.05]
[1763141010226,0.04181,96941.0,96913.0,0.02573]
[1763141010428,0.04181,96941.0,96935.0,0.05]
[1763141010635,0.02367,96940.0,96935.0,0.05]
[1763141010840,0.01614,96936.0,96935.0,0.05]
[1763141011000,0.06716,96936.0,96931.0,0.01018]
[1763141011203,0.06716,96936.0,96935.0,0.05]
[1763141012232,0.001,96941.0,96935.0,0.05]
[1763141012551,0.02367,96963.0,96950.0,0.05]
[1763141012753,0.02367,96963.0,96950.0,0.41285105]
[1763141012754,0.08613554,96959.0,96950.0,0.41285105]
[1763141012953,0.01614,96951.0,96950.0,0.41285105]
[1763141013376,0.02367,96958.0,96950.0,0.41285105]
[1763141014282,0.001,96951.0,96950.0,0.41285105]
[1763141014444,0.001,96951.0,96950.0,0.05]
[1763141014646,0.06812,96951.0,96950.0,0.05]
[1763141015623,0.06712,96951.0,96950.0,0.05]
[1763141016427,0.06131243,96951.0,96950.0,0.05]
[1763141017030,0.07745243,96951.0,96950.0,0.05]
[1763141017203,0.06131243,96951.0,96950.0,0.05]
[1763141017605,0.07745243,96951.0,96950.0,0.05]
[1763141017830,0.06131243,96951.0,96950.0,0.05]
[1763141019142,0.07745243,96951.0,96950.0,0.05]
[1763141019341,0.07745243,96951.0,96946.0,0.05]
[1763141019522,0.07745243,96951.0,96931.0,0.33318]
[1763141019523,0.15425302,96950.0,96931.0,0.01018]
[1763141019763,0.0145173,96949.0,96942.0,0.05]
[1763141020030,0.06712,96948.0,96947.0,0.05]
[1763141020452,0.08326,96948.0,96947.0,0.05]
[1763141020615,0.06712,96948.0,96947.0,0.05]
[1763141022626,0.06712,96948.0,96946.0,0.01146]
[1763141022830,0.06712,96948.0,96947.0,0.05]
[1763141024489,0.06712,96948.0,96947.0,0.07507]
[1763141024940,0.06712,96948.0,96947.0,0.05]
[1763141035722,0.08326,96948.0,96947.0,0.05]
[1763141036873,0.08326,96948.0,96938.0,0.36285105]
[1763141037098,0.03615,96947.0,96946.0,0.05]
[1763141037415,0.05229,96947.0,96946.0,0.05]
[1763141037639,0.02862,96947.0,96946.0,0.05]
[1763141038583,0.01248,96947.0,96946.0,0.05]
[1763141039361,0.02862,96947.0,96946.0,0.05]
[1763141039953,0.02862,96947.0,96942.0,0.05]
[1763141040160,0.01248,96947.0,96939.0,0.00957]
[1763141040385,0.01248,96947.0,96946.0,0.05]
[1763141040600,0.01169,96953.0,96946.0,0.05]
[1763141040886,0.06712,96952.0,96951.0,0.05]
[1763141041271,0.10771,96952.0,96951.0,0.05]
[1763141044748,0.10771,96952.0,96939.0,0.00957]
[1763141044749,0.10771,96952.0,96949.0,0.05]
[1763141044954,0.01631,96950.0,96949.0,0.05]
[1763141045155,0.03458154,96950.0,96949.0,0.05]
[1763141045516,0.10170154,96950.0,96949.0,0.05]
[1763141045722,0.10170154,96950.0,96940.0,0.36285105]
[1763141045919,0.02206671,96949.0,96946.0,0.05]
[1763141046371,0.02206671,96949.0,96940.0,0.36285105]
[1763141046372,0.01631,96947.0,96940.0,0.36285105]
[1763141046518,0.01631,96941.0,96940.0,0.36285105]
[1763141046735,0.08343,96941.0,96931.0,0.36285105]
[1763141046934,0.028,96932.0,96916.0,0.323]
[1763141047134,0.028,96932.0,96915.0,0.00642]
[1763141047135,0.06712,96931.0,96930.0,0.05]
[1763141048758,0.06712,96931.0,96926.0,0.00642]
[1763141048759,0.01128,96946.0,96926.0,0.02961]
[1763141049093,0.06712,96945.0,96941.0,0.05]
[1763141049455,0.06712,96945.0,96944.0,0.05]
[1763141049889,0.08357,96945.0,96944.0,0.05]
[1763141050141,0.10935781,96945.0,96911.0,0.33318]
[1763141050349,0.01645,96937.0,96927.0,0.05]
[1763141050585,0.01645,96937.0,96934.0,0.05]
[1763141050762,0.02323,96936.0,96934.0,0.05]
[1763141051029,0.08357,96935.0,96927.0,0.05]
[1763141051226,0.08357,96935.0,96911.0,0.01018]
[1763141051227,0.01645,96927.0,96911.0,0.01018]
[1763141051441,0.09035,96926.0,96915.0,0.002]
[1763141051645,0.09035,96926.0,96920.0,0.05]
[1763141051849,0.06712,96926.0,96920.0,0.05]
[1763141052055,0.02735,96921.0,96920.0,0.05]
[1763141053198,0.0109,96921.0,96915.0,0.00642]
[1763141053404,0.06712,96920.0,96919.0,0.05]
[1763141054893,0.08357,96920.0,96919.0,0.05]
[1763141056581,0.06712,96920.0,96919.0,0.05]
[1763141057933,0.08357,96920.0,96919.0,0.05]
[1763141059493,0.06712,96920.0,96919.0,0.05]
[1763141059831,0.06712,96920.0,96913.0,0.00642]
[1763141059832,0.02323,96935.0,96913.0,0.00642]
[1763141060187,0.06712,96934.0,96928.0,0.05]
[1763141060388,0.01645,96929.0,96928.0,0.05]
[1763141060974,0.08357,96929.0,96928.0,0.05]
[1763141061761,0.08457,96929.0,96928.0,0.05]
[1763141062136,0.01745,96929.0,96928.0,0.05]
[1763141062341,0.08457,96929.0,96928.0,0.05]
[1763141062787,0.01745,96929.0,96928.0,0.05]
[1763141063072,0.08457,96929.0,96928.0,0.05]
[1763141066368,0.001,96929.0,96928.0,0.05]
[1763141066585,0.06812,96929.0,96928.0,0.05]
[1763141067646,0.06712,96929.0,96928.0,0.05]
[1763141073358,0.01128,96942.0,96940.0,0.05]
[1763141073573,0.06712,96941.0,96940.0,0.05]
[1763141074522,0.08357,96941.0,96940.0,0.05]
[1763141076098,0.10797849,96941.0,96940.0,0.05]
[1763141077043,0.08557,96941.0,96940.0,0.05]
[1763141078310,0.11135888,96941.0,96940.0,0.05]
[1763141079591,0.11135888,96941.0,96916.0,0.1498]
[1763141079592,0.11135888,96941.0,96928.0,0.05]
[1763141079813,0.01645,96931.0,96928.0,0.05]
[1763141080021,0.0286,96929.0,96928.0,0.05]
[1763141080444,0.06712,96930.0,96929.0,0.05]
[1763141082351,0.02356,96947.0,96938.0,0.05]
[1763141082556,0.02356,96947.0,96940.0,0.05]
[1763141082557,0.06712,96941.0,96940.0,0.05]
[1763141083419,0.08357,96941.0,96930.0,0.42624102]
[1763141083635,0.04032045,96940.0,96938.0,0.05]
[1763141083837,0.02578941,96939.0,96938.0,0.05]
[1763141084049,0.04223941,96939.0,96938.0,0.05]
[1763141084730,0.01645,96939.0,96938.0,0.05]
[1763141085155,0.01745,96939.0,96938.0,0.05]
[1763141085839,0.01745,96939.0,96890.0,0.0004]
[1763141085840,0.20636969,96914.0,96890.0,0.0004]
[1763141086060,0.04341874,96912.0,96890.0,0.0004]
[1763141086268,0.02647,96913.0,96891.0,0.01211]
[1763141086269,0.01645,96905.0,96891.0,0.01211]
[1763141086639,0.01128,96904.0,96895.0,0.42624102]
[1763141086785,0.07844,96904.0,96891.0,0.03676]
[1763141086969,0.07844,96904.0,96891.0,0.01211]
[1763141088423,0.07844,96904.0,96891.0,0.01311]
[1763141088829,0.07844,96904.0,96890.0,0.4394644]
[1763141089681,0.06716,96904.0,96891.0,0.02465]
[1763141091423,0.06716,96904.0,96890.0,0.4394644]
[1763141091669,0.06716,96904.0,96903.0,0.00024107]
[1763141091919,0.09072,96904.0,96903.0,0.00024107]
[1763141092144,0.10717,96904.0,96903.0,0.00024107]
[1763141094393,0.04001,96904.0,96903.0,0.00024107]
[1763141094630,0.10717,96904.0,96903.0,0.00024107]
[1763141095275,0.15058874,96904.0,96903.0,0.00024107]
[1763141095948,0.08342874,96904.0,96903.0,0.00024107]
[1763141096129,0.04001,96904.0,96903.0,0.00024107]
[1763141096352,0.10717,96904.0,96903.0,0.00024107]
[1763141097336,0.10817,96904.0,96903.0,0.00024107]
[1763141098166,0.10917,96904.0,96903.0,0.00024107]
[1763141099218,0.12609807,96904.0,96903.0,0.00024107]
[1763141100011,0.12344663,96904.0,96903.0,0.00024107]
[1763141100590,0.13496872,96904.0,96903.0,0.00024107]
[1763141100812,0.12640743,96904.0,96903.0,0.00024107]
[1763141101249,0.06916,96904.0,96903.0,0.00024107]
[1763141101675,0.08576,96904.0,96903.0,0.00024107]
[1763141101893,0.08476,96904.0,96903.0,0.00024107]
[1763141102836,0.1020027,96904.0,96903.0,0.00024107]
[1763141103077,0.08476,96904.0,96903.0,0.00024107]
[1763141103265,0.15297746,96904.0,96903.0,0.00024107]
[1763141103470,0.16477746,96904.0,96903.0,0.00024107]
[1763141103740,0.37216728,96904.0,96903.0,0.00024107]
[1763141103946,0.34636856,96904.0,96903.0,0.00024107]
[1763141104151,0.34736856,96904.0,96903.0,0.00024107]
[1763141107595,0.07381874,96904.0,96903.0,0.00024107]
[1763141107980,0.13997874,96904.0,96903.0,0.00024107]
[1763141108763,0.16677746,96904.0,96903.0,0.00024107]
[1763141109859,0.16477746,96904.0,96903.0,0.00024107]
[1763141110223,0.16577746,96904.0,96903.0,0.00024107]
[1763141110428,0.16677746,96904.0,96903.0,0.00024107]
[1763141110973,0.06916,96904.0,96903.0,0.00024107]
[1763141111531,0.08573,96904.0,96903.0,0.00024107]
[1763141111732,0.08373,96904.0,96903.0,0.00024107]
[1763141111941,0.06716,96904.0,96903.0,0.00024107]
[1763141112643,0.08373,96904.0,96903.0,0.00024107]
[1763141114089,0.10952872,96904.0,96903.0,0.00024107]
[1763141114288,0.08373,96904.0,96903.0,0.00024107]
[1763141114684,0.08473,96904.0,96903.0,0.00024107]
[1763141114930,0.08573,96904.0,96903.0,0.00024107]
[1763141115347,0.11089945,96904.0,96903.0,0.00024107]
[1763141115744,0.13013125,96904.0,96903.0,0.00024107]
[1763141116669,0.17417926,96904.0,96903.0,0.00024107]
[1763141117096,0.16422603,96904.0,96903.0,0.00024107]
[1763141118103,0.16754638,96904.0,96903.0,0.00024107]
[1763141118919,0.15921831,96904.0,96903.0,0.00024107]
[1763141119267,0.1755007,96904.0,96903.0,0.00024107]
[1763141119483,0.2426607,96904.0,96903.0,0.00024107]
[1763141119702,0.22664494,96904.0,96903.0,0.00024107]
[1763141120304,0.15948494,96904.0,96903.0,0.00024107]
[1763141120502,0.22664494,96904.0,96903.0,0.00024107]
[1763141120803,0.1049618,96904.0,96903.0,0.00024107]
[1763141120950,0.13076052,96904.0,96903.0,0.00024107]
[1763141122696,0.17417926,96904.0,96903.0,0.00024107]
[1763141123114,0.38056908,96904.0,96903.0,0.00024107]
[1763141123356,0.35477036,96904.0,96903.0,0.00024107]
[1763141123761,0.37691329,96904.0,96903.0,0.00024107]
[1763141124082,0.58606877,96904.0,96903.0,0.00024107]
[1763141124395,0.49352347,96904.0,96903.0,0.00024107]
[1763141125266,0.49252347,96904.0,96903.0,0.00024107]
[1763141125439,0.49352347,96904.0,96903.0,0.00024107]
[1763141125758,0.49252347,96904.0,96903.0,0.00024107]
[1763141126117,0.49452347,96904.0,96903.0,0.00024107]
[1763141127324,0.70091329,96904.0,96903.0,0.00024107]
[1763141128204,0.49452347,96904.0,96903.0,0.00024107]
[1763141128371,0.70091329,96904.0,96903.0,0.00024107]
[1763141128572,0.14938054,96904.0,96903.0,0.00024107]
[1763141128775,0.16676291,96904.0,96903.0,0.00024107]
[1763141129390,0.09960291,96904.0,96903.0,0.00024107]
[1763141129633,0.16676291,96904.0,96903.0,0.00024107]
[1763141130150,0.16576291,96904.0,96903.0,0.00024107]
[1763141130325,0.16376291,96904.0,96903.0,0.00024107]
[1763141130525,0.16476291,96904.0,96903.0,0.00024107]
[1763141130727,0.16576291,96904.0,96903.0,0.00024107]
[1763141130935,0.38056908,96904.0,96903.0,0.00024107]
[1763141131147,0.14838054,96904.0,96903.0,0.00024107]
[1763141131425,0.09466043,96904.0,96903.0,0.00024107]
[1763141131677,0.16723767,96904.0,96903.0,0.00024107]
[1763141132083,0.10495989,96904.0,96903.0,0.00024107]
[1763141132290,0.03779989,96904.0,96903.0,0.00024107]
[1763141132498,0.10495989,96904.0,96903.0,0.00024107]
[1763141132916,0.08638989,96904.0,96903.0,0.00024107]
[1763141133342,0.10345989,96904.0,96903.0,0.00024107]
[1763141133564,0.10245989,96904.0,96903.0,0.00024107]
[1763141133809,0.10145989,96904.0,96903.0,0.00024107]
[1763141133973,0.12099334,96904.0,96903.0,0.00024107]
[1763141134149,0.16441208,96904.0,96903.0,0.00024107]
[1763141134738,0.3718019,96904.0,96903.0,0.00024107]
[1763141134945,0.14687863,96904.0,96903.0,0.00024107]
[1763141135216,0.167513,96904.0,96903.0,0.00024107]
[1763141135981,0.168513,96904.0,96903.0,0.00024107]
[1763141137519,0.14687863,96904.0,96903.0,0.00024107]
[1763141137801,0.08423,96904.0,96903.0,0.00024107]
[1763141138821,0.10902872,96904.0,96903.0,0.00024107]
[1763141139402,0.11002872,96904.0,96903.0,0.00024107]
[1763141139788,0.10902872,96904.0,96903.0,0.00024107]
[1763141140017,0.10802872,96904.0,96903.0,0.00024107]
[1763141140229,0.10902872,96904.0,96903.0,0.00024107]
[1763141140439,0.11002872,96904.0,96903.0,0.00024107]
[1763141141391,0.31641854,96904.0,96903.0,0.00024107]
[1763141141595,0.33403856,96904.0,96903.0,0.00024107]
[1763141141830,0.35325749,96904.0,96903.0,0.00024107]
[1763141142067,0.12764874,96904.0,96903.0,0.00024107]
[1763141142274,0.14527261,96904.0,96903.0,0.00024107]
[1763141142932,0.16449133,96904.0,96903.0,0.00024107]
[1763141143469,0.18663281,96904.0,96903.0,0.00024107]
[1763141143861,0.19480766,96904.0,96903.0,0.00024107]
[1763141144062,0.51780766,96904.0,96903.0,0.00024107]
[1763141144249,0.49200894,96904.0,96903.0,0.00024107]
[1763141144980,0.46986746,96904.0,96903.0,0.00024107]
[1763141145190,0.49201195,96904.0,96903.0,0.00024107]
[1763141146156,0.49201195,96904.0,96880.0,0.0004]
[1763141146157,0.59393781,96904.0,96880.0,0.0004]
[1763141146373,0.13082654,96881.0,96880.0,0.0004]